fUSD/lending_fUSD_20250623
["ID","MTS","AMOUNT","RATE_DAILY","PERIOD"]
[367252828,1750716668742,-500.0,0.00022473,2]
[367252829,1750716668751,-500.0,0.00022473,2]
[367252830,1750716668761,-500.0,0.00022473,2]
[367252831,1750716668770,-500.0,0.00022473,2]
[367252832,1750716668780,-500.52988829,0.00022473,2]
[367252833,1750716668789,-500.0,0.00022473,2]
[367252834,1750716668799,-150.0,0.00022482,2]
[367252835,1750716668809,-500.0,0.00022492,2]
[367252836,1750716668819,-150.0,0.00022493,2]
[367252837,1750716668829,-1467.14,0.000225,2]
[367252838,1750716668838,-376.0,0.000225,2]
[367252839,1750716668848,-769.0,0.000225,2]
[367252840,1750716668858,-238.0,0.000225,2]
[367252841,1750716668868,-8597.46470426,0.00022514,2]
[367252842,1750716668878,-180.38371135,0.00022517,2]
[367252843,1750716668888,-998.75720867,0.00022521,2]
[367252844,1750716668902,-510.99655861,0.00022521,2]
[367252845,1750716668912,-500.1426444,0.00022521,2]
[367252846,1750716668922,-308.97327719,0.00022521,2]
[367252847,1750716668932,-1000.0,0.00022521,2]
[367252848,1750716668942,-1000.0,0.00022521,2]
[367252849,1750716668952,-180.0,0.00022554,2]
[367252850,1750716668962,-150.0,0.00022555,2]
[367252851,1750716668972,-169.34,0.0002256,2]
[367252852,1750716668982,-150.0,0.00022576,2]
[367252853,1750716668992,-150.0,0.00022579,2]
[367252854,1750716669002,-200.0,0.00022581,2]
[367252855,1750716669012,-200.0,0.00022581,2]
[367252856,1750716669023,-150.0,0.00022593,2]
[367252857,1750716669033,-150.0,0.00022597,2]
[367252858,1750716669043,-374.64754192,0.00022601,2]
[367252859,1750716669053,-1042.18730783,0.00022601,2]
[367252860,1750716669064,-270.37305814,0.00022608,2]
[367252861,1750716669075,-210.0,0.0002261,2]
[367252862,1750716669086,-150.0,0.00022626,2]
[367252863,1750716669099,-150.0,0.00022637,2]
[367252864,1750716669113,-8597.46470426,0.00022647,2]
[367252865,1750716669126,-200.0,0.00022649,2]
[367252866,1750716669135,-3427.8516155,0.00022659,7]
[367252867,1750716669145,-1000.0,0.0002266,5]
[367252868,1750716669157,-150.0,0.00022662,2]
[367252869,1750716669167,-150.0,0.00022687,2]
[367252870,1750716669176,-500.0,0.00022691,2]
[367252871,1750716669185,-1283.47029,0.000227,2]
[367252872,1750716669194,-1569.10551302,0.000227,2]
[367252873,1750716669204,-150.0,0.00022712,2]
[367252874,1750716669215,-500.0,0.00022721,2]
[367252875,1750716669224,-338.34199638,0.00022729,2]
[367252876,1750716669233,-156.13646521,0.0002273,2]
[367252877,1750716669243,-300.64,0.00022732,2]
[367252878,1750716669253,-420.76736015,0.00022736,2]
[367252879,1750716669262,-500.0,0.00022738,2]
[367252880,1750716669271,-500.0,0.00022738,2]
[367252881,1750716669281,-611.65430361,0.00022738,2]
[367252882,1750716669291,-490.0,0.00022739,2]
[367252883,1750716669300,-490.0,0.00022739,2]
[367252884,1750716669309,-159.48,0.00022739,2]
[367252885,1750716669319,-490.0,0.00022739,2]
[367252886,1750716669404,-490.0,0.00022739,2]
[367252887,1750716669414,-563.46,0.00022739,2]
[367252888,1750716669424,-490.0,0.00022739,2]
[367252889,1750716669433,-780.21,0.00022739,2]
[367252890,1750716669443,-490.0,0.00022739,2]
[367252891,1750716669455,-753.72,0.00022739,2]
[367252892,1750716669465,-803.48,0.00022739,2]
[367252893,1750716669475,-490.0,0.00022739,2]
[367252894,1750716669485,-647.25,0.00022739,2]
[367252895,1750716669495,-490.0,0.00022739,2]
[367252896,1750716669504,-490.0,0.00022739,2]
[367252897,1750716669513,-490.0,0.00022739,2]
[367252898,1750716669523,-490.0,0.00022739,2]
[367252899,1750716669532,-490.0,0.00022739,2]
[367252900,1750716669541,-490.0,0.00022739,2]
[367252901,1750716669550,-490.0,0.00022739,2]
[367252902,1750716669559,-490.0,0.00022739,2]
[367252903,1750716669569,-517.36,0.00022739,2]
[367252904,1750716669579,-490.0,0.00022739,2]
[367252905,1750716669588,-509.4,0.00022739,2]
[367252906,1750716669598,-578.82,0.00022739,2]
[367252907,1750716669607,-490.0,0.00022739,2]
[367252908,1750716669617,-490.0,0.00022739,2]
[367252909,1750716669627,-490.0,0.00022739,2]
[367252910,1750716669636,-328.29004248,0.00022739,2]
[367252911,1750716669648,-490.0,0.00022739,2]
[367252912,1750716669664,-632.16,0.00022739,2]
[367252913,1750716669674,-490.0,0.00022739,2]
[367252914,1750716669684,-490.0,0.00022739,2]
[367252915,1750716669694,-490.0,0.00022739,2]
[367252916,1750716669705,-667.39,0.00022739,2]
[367252917,1750716669714,-985.54,0.00022739,2]
[367252918,1750716669723,-687.98,0.00022739,2]
[367252919,1750716669734,-659.33,0.00022739,2]
[367252920,1750716669744,-667.22,0.00022739,2]
[367252921,1750716669753,-355.94013059,0.00022739,2]
[367252922,1750716669762,-490.0,0.00022739,2]
[367252923,1750716669772,-490.0,0.00022739,2]
[367252924,1750716669781,-548.73,0.00022739,2]
[367252925,1750716669790,-490.0,0.00022739,2]
[367252926,1750716669799,-490.0,0.00022739,2]
[367252927,1750716669808,-490.0,0.00022739,2]
[367252928,1750716669818,-490.0,0.00022739,2]
[367252929,1750716669828,-490.0,0.00022739,2]
[367252930,1750716669837,-490.0,0.00022739,2]
[367252931,1750716669846,-300.0,0.00022739,2]
[367252932,1750716669856,-510.14,0.00022739,2]
[367252933,1750716669865,-506.47,0.00022739,2]
[367252934,1750716669874,-568.52,0.00022739,2]
[367252935,1750716669884,-849.42,0.00022739,2]
[367252936,1750716669893,-587.48,0.00022739,2]
[367252937,1750716669904,-490.0,0.00022739,2]
[367252938,1750716669914,-490.0,0.00022739,2]
[367252939,1750716669924,-736.18,0.00022739,2]
[367252940,1750716669933,-704.94,0.00022739,2]
[367252941,1750716669943,-490.0,0.00022739,2]
[367252942,1750716669953,-490.0,0.00022739,2]
[367252943,1750716669963,-490.0,0.00022739,2]
[367252944,1750716669972,-203.72,0.00022739,2]
[367252945,1750716669981,-490.0,0.00022739,2]
[367252946,1750716669991,-906.29,0.00022739,2]
[367252947,1750716670001,-585.37,0.00022739,2]
[367252948,1750716670011,-490.0,0.00022739,2]
[367252949,1750716670020,-490.0,0.00022739,2]
[367252950,1750716670030,-679.64,0.00022739,2]
[367252951,1750716670040,-490.0,0.00022739,2]
[367252952,1750716670049,-490.0,0.00022739,2]
[367252953,1750716670059,-634.1,0.00022739,2]
[367252954,1750716670068,-490.0,0.00022739,2]
[367252955,1750716670078,-269.40453276,0.00022739,2]
[367252956,1750716670087,-490.0,0.00022739,2]
[367252957,1750716670096,-490.0,0.00022739,2]
[367252958,1750716670106,-490.0,0.00022739,2]
[367252959,1750716670116,-490.0,0.00022739,2]
[367252960,1750716670126,-868.08,0.00022739,2]
[367252961,1750716670135,-490.0,0.00022739,2]
[367252962,1750716670145,-731.96,0.00022739,2]
[367252963,1750716670157,-490.0,0.00022739,2]
[367252964,1750716670167,-546.9,0.00022739,2]
[367252965,1750716670176,-490.0,0.00022739,2]
[367252966,1750716670186,-490.0,0.00022739,2]
[367252967,1750716670196,-1263.18,0.00022739,2]
[367252968,1750716670205,-490.0,0.00022739,2]
[367252969,1750716670214,-490.0,0.00022739,2]
[367252970,1750716670224,-572.02,0.00022739,2]
[367252971,1750716670233,-490.0,0.00022739,2]
[367252972,1750716670243,-490.0,0.00022739,2]
[367252973,1750716670253,-490.0,0.00022739,2]
[367252974,1750716670264,-684.33,0.00022739,2]
[367252975,1750716670273,-907.85,0.00022739,2]
[367252976,1750716670282,-250.0,0.00022739,2]
[367252977,1750716670291,-490.0,0.00022739,2]
[367252978,1750716670301,-689.15,0.00022739,2]
[367252979,1750716670317,-500.0,0.00022739,2]
[367252980,1750716670327,-490.0,0.00022739,2]
[367252981,1750716670336,-490.0,0.00022739,2]
[367252982,1750716670346,-490.0,0.00022739,2]
[367252983,1750716670355,-680.89,0.00022739,2]
[367252984,1750716670365,-898.43,0.00022739,2]
[367252985,1750716670374,-534.48,0.00022739,2]
[367252986,1750716670383,-813.42,0.00022739,2]
[367252987,1750716670393,-490.0,0.00022739,2]
[367252988,1750716670406,-636.28,0.00022739,2]
[367252989,1750716670416,-490.0,0.00022739,2]
[367252990,1750716670425,-490.0,0.00022739,2]
[367252991,1750716670434,-624.6,0.00022739,2]
[367252992,1750716670443,-490.0,0.00022739,2]
[367252993,1750716670452,-490.0,0.00022739,2]
[367252994,1750716670462,-490.0,0.00022739,2]
[367252995,1750716670471,-490.0,0.00022739,2]
[367252996,1750716670481,-1120.25,0.00022739,2]
[367252997,1750716670490,-490.0,0.00022739,2]
[367252998,1750716670500,-490.0,0.00022739,2]
[367252999,1750716670509,-891.13,0.00022739,2]
[367253000,1750716670519,-644.99,0.00022739,2]
[367253001,1750716670528,-889.82,0.00022739,2]
[367253002,1750716670537,-490.0,0.00022739,2]
[367253003,1750716670547,-490.0,0.00022739,2]
[367253004,1750716670556,-490.0,0.00022739,2]
[367253005,1750716670566,-868.41,0.00022739,2]
[367253006,1750716670575,-1377.2,0.00022739,2]
[367253007,1750716670584,-495.88,0.00022739,2]
[367253008,1750716670594,-490.0,0.00022739,2]
[367253009,1750716670603,-745.19,0.00022739,2]
[367253010,1750716670614,-610.64,0.00022739,2]
[367253011,1750716670623,-490.0,0.00022739,2]
[367253012,1750716670632,-943.84,0.00022739,2]
[367253013,1750716670643,-602.03,0.00022739,2]
[367253014,1750716670658,-543.99,0.00022739,2]
[367253015,1750716670667,-1771.19,0.00022739,2]
[367253016,1750716670676,-490.0,0.00022739,2]
[367253017,1750716670687,-522.22565865,0.00022739,2]
[367253018,1750716670696,-735.04,0.00022739,2]
[367253019,1750716670708,-490.0,0.00022739,2]
[367253020,1750716670718,-490.0,0.00022739,2]
[367253021,1750716670727,-974.25,0.00022739,2]
[367253022,1750716670738,-542.42,0.00022739,2]
[367253023,1750716670748,-630.35,0.00022739,2]
[367253024,1750716670757,-490.0,0.00022739,2]
[367253025,1750716670766,-1092.49,0.00022739,2]
[367253026,1750716670774,-490.0,0.00022739,2]
[367253027,1750716670784,-352.45480049,0.00022739,2]
[367253028,1750716670793,-640.78,0.00022739,2]
[367253029,1750716670802,-490.0,0.00022739,2]
[367253030,1750716670811,-490.0,0.00022739,2]
[367253031,1750716670820,-965.32,0.00022739,2]
[367253032,1750716670829,-968.83,0.00022739,2]
[367253033,1750716670837,-490.0,0.00022739,2]
[367253034,1750716670846,-737.86,0.00022739,2]
[367253035,1750716670855,-605.78,0.00022739,2]
[367253036,1750716670865,-490.0,0.00022739,2]
[367253037,1750716670874,-490.0,0.00022739,2]
[367253038,1750716670883,-490.0,0.00022739,2]
[367253039,1750716670892,-806.84,0.00022739,2]
[367253040,1750716670905,-490.0,0.00022739,2]
[367253041,1750716670914,-490.0,0.00022739,2]
[367253042,1750716670924,-490.0,0.00022739,2]
[367253043,1750716670933,-490.0,0.00022739,2]
[367253044,1750716670942,-378.27,0.00022739,2]
[367253045,1750716670951,-490.0,0.00022739,2]
[367253046,1750716670960,-490.0,0.00022739,2]
[367253047,1750716670969,-490.0,0.00022739,2]
[367253048,1750716670978,-516.84,0.00022739,2]
[367253049,1750716670987,-1077.565286,0.00022739,2]
[367253050,1750716670996,-822.71,0.00022739,2]
[367253051,1750716671005,-583.46,0.00022739,2]
[367253052,1750716671016,-490.0,0.00022739,2]
[367253053,1750716671026,-1698.97,0.00022739,2]
[367253054,1750716671035,-878.35,0.00022739,2]
[367253055,1750716671044,-490.0,0.00022739,2]
[367253056,1750716671053,-524.39,0.00022739,2]
[367253057,1750716671063,-490.0,0.00022739,2]
[367253058,1750716671072,-1108.34,0.00022739,2]
[367253059,1750716671082,-490.0,0.00022739,2]
[367253060,1750716671091,-490.0,0.00022739,2]
[367253061,1750716671100,-1305.53,0.00022739,2]
[367253062,1750716671109,-490.0,0.00022739,2]
[367253063,1750716671118,-621.785509,0.00022739,2]
[367253064,1750716671128,-1000.0,0.00022739,2]
[367253065,1750716671137,-652.83,0.00022739,2]
[367253066,1750716671146,-728.59,0.00022739,2]
[367253067,1750716671161,-490.0,0.00022739,2]
[367253068,1750716671171,-501.08,0.00022739,2]
[367253069,1750716671180,-626.7,0.00022739,2]
[367253070,1750716671189,-490.0,0.00022739,2]
[367253071,1750716671198,-490.0,0.00022739,2]
[367253072,1750716671208,-767.77,0.00022739,2]
[367253073,1750716671217,-519.64,0.00022739,2]
[367253074,1750716671226,-2314.037933,0.00022739,2]
[367253075,1750716671235,-490.0,0.00022739,2]
[367253076,1750716671244,-490.0,0.00022739,2]
[367253077,1750716671254,-1224.01,0.00022739,2]
[367253078,1750716671265,-490.0,0.00022739,2]
[367253079,1750716671274,-490.0,0.00022739,2]
[367253080,1750716671284,-490.0,0.00022739,2]
[367253081,1750716671294,-523.95,0.00022739,2]
[367253082,1750716671307,-490.0,0.00022739,2]
[367253083,1750716671317,-1180.18,0.00022739,2]
[367253084,1750716671327,-490.0,0.00022739,2]
[367253085,1750716671337,-490.0,0.00022739,2]
[367253086,1750716671346,-490.0,0.00022739,2]
[367253087,1750716671355,-925.57,0.00022739,2]
[367253088,1750716671365,-490.0,0.00022739,2]
[367253089,1750716671375,-774.2,0.00022739,2]
[367253090,1750716671389,-510.96,0.00022739,2]
[367253091,1750716671399,-733.78,0.00022739,2]
[367253092,1750716671412,-490.0,0.00022739,2]
[367253093,1750716671421,-490.0,0.00022739,2]
[367253094,1750716671430,-490.0,0.00022739,2]
[367253095,1750716671440,-1340.55,0.00022739,2]
[367253096,1750716671449,-490.0,0.00022739,2]
[367253097,1750716671458,-983.15,0.00022739,2]
[367253098,1750716671467,-490.0,0.00022739,2]
[367253099,1750716671477,-490.58,0.00022739,2]
[367253100,1750716671487,-1270.66,0.00022739,2]
[367253101,1750716671496,-490.0,0.00022739,2]
[367253102,1750716671506,-1595.75,0.00022739,2]
[367253103,1750716671516,-490.0,0.00022739,2]
[367253104,1750716671527,-490.0,0.00022739,2]
[367253105,1750716671536,-490.0,0.00022739,2]
[367253106,1750716671546,-750.28,0.00022739,2]
[367253107,1750716671555,-490.0,0.00022739,2]
[367253108,1750716671564,-871.05,0.00022739,2]
[367253109,1750716671573,-1692.71,0.00022739,2]
[367253110,1750716671582,-602.09,0.00022739,2]
[367253111,1750716671591,-773.37,0.00022739,2]
[367253112,1750716671601,-340.81969816,0.00022739,2]
[367253113,1750716671610,-490.0,0.00022739,2]
[367253114,1750716671619,-554.5,0.00022739,2]
[367253115,1750716671628,-1204.17,0.00022739,2]
[367253116,1750716671638,-490.0,0.00022739,2]
[367253117,1750716671650,-490.0,0.00022739,2]
[367253118,1750716671667,-490.0,0.00022739,2]
[367253119,1750716671677,-490.0,0.00022739,2]
[367253120,1750716671688,-816.53,0.00022739,2]
[367253121,1750716671698,-648.86,0.00022739,2]
[367253122,1750716671708,-490.0,0.00022739,2]
[367253123,1750716671719,-490.0,0.00022739,2]
[367253124,1750716671730,-490.0,0.00022739,2]
[367253125,1750716671741,-490.0,0.00022739,2]
[367253126,1750716671751,-529.7,0.00022739,2]
[367253127,1750716671761,-657.22,0.00022739,2]
[367253128,1750716671770,-187.97018283,0.00022739,2]
[367253129,1750716671780,-326.60905831,0.00022739,2]
[367253130,1750716671790,-511.69,0.00022739,2]
[367253131,1750716671800,-711.86,0.00022739,2]
[367253132,1750716671809,-490.0,0.00022739,2]
[367253133,1750716671818,-490.0,0.00022739,2]
[367253134,1750716671827,-490.0,0.00022739,2]
[367253135,1750716671836,-1421.66,0.00022739,2]
[367253136,1750716671845,-490.0,0.00022739,2]
[367253137,1750716671855,-699.76,0.00022739,2]
[367253138,1750716671864,-490.0,0.00022739,2]
[367253139,1750716671873,-490.0,0.00022739,2]
[367253140,1750716671885,-490.0,0.00022739,2]
[367253141,1750716671894,-1112.8,0.00022739,2]
[367253142,1750716671910,-490.0,0.00022739,2]
[367253143,1750716671919,-500.91,0.00022739,2]
[367253144,1750716671929,-490.0,0.00022739,2]
[367253145,1750716671938,-876.24,0.00022739,2]
[367253146,1750716671947,-490.0,0.00022739,2]
[367253147,1750716671957,-964.11,0.00022739,2]
[367253148,1750716671967,-588.02,0.00022739,2]
[367253149,1750716671976,-613.59,0.00022739,2]
[367253150,1750716671985,-1378.98,0.00022739,2]
[367253151,1750716671994,-647.67,0.00022739,2]
[367253152,1750716672003,-490.0,0.00022739,2]
[367253153,1750716672012,-1025.12,0.00022739,2]
[367253154,1750716672022,-945.92,0.00022739,2]
[367253155,1750716672031,-2003.63,0.00022739,2]
[367253156,1750716672041,-490.0,0.00022739,2]
[367253157,1750716672050,-663.54,0.00022739,2]
[367253158,1750716672060,-496.69,0.00022739,2]
[367253159,1750716672069,-1212.37,0.00022739,2]
[367253160,1750716672078,-490.0,0.00022739,2]
[367253161,1750716672088,-918.35,0.00022739,2]
[367253162,1750716672097,-791.05,0.00022739,2]
[367253163,1750716672107,-490.0,0.00022739,2]
[367253164,1750716672116,-997.06,0.00022739,2]
[367253165,1750716672126,-490.0,0.00022739,2]
[367253166,1750716672135,-540.77,0.00022739,2]
[367253167,1750716672144,-1008.38,0.00022739,2]
[367253168,1750716672159,-889.18,0.00022739,2]
[367253169,1750716672168,-500.0,0.00022739,2]
[367253170,1750716672177,-500.0,0.00022739,2]
[367253171,1750716672186,-500.0,0.00022739,2]
[367253172,1750716672196,-1285.74,0.00022739,2]
[367253173,1750716672206,-500.0,0.00022739,2]
[367253174,1750716672218,-671.86,0.00022739,2]
[367253175,1750716672227,-500.0,0.00022739,2]
[367253176,1750716672236,-500.0,0.00022739,2]
[367253177,1750716672245,-500.0,0.00022739,2]
[367253178,1750716672254,-500.0,0.00022739,2]
[367253179,1750716672266,-500.0,0.00022739,2]
[367253180,1750716672276,-490.0,0.00022739,2]
[367253181,1750716672287,-500.0,0.00022739,2]
[367253182,1750716672298,-500.0,0.00022739,2]
[367253183,1750716672307,-500.0,0.00022739,2]
[367253184,1750716672316,-500.0,0.00022739,2]
[367253185,1750716672325,-706.31,0.00022739,2]
[367253186,1750716672334,-500.0,0.00022739,2]
[367253187,1750716672344,-500.0,0.00022739,2]
[367253188,1750716672353,-500.0,0.00022739,2]
[367253189,1750716672362,-500.0,0.00022739,2]
[367253190,1750716672372,-500.0,0.00022739,2]
[367253191,1750716672381,-500.0,0.00022739,2]
[367253192,1750716672391,-500.0,0.00022739,2]
[367253193,1750716672400,-800.25,0.00022739,2]
[367253194,1750716672417,-1124.25,0.00022739,2]
[367253195,1750716672427,-500.0,0.00022739,2]
[367253196,1750716672437,-500.0,0.00022739,2]
[367253197,1750716672447,-500.0,0.00022739,2]
[367253198,1750716672456,-500.0,0.00022739,2]
[367253199,1750716672465,-500.0,0.00022739,2]
[367253200,1750716672474,-232.72469441,0.00022739,2]
[367253201,1750716672483,-500.0,0.00022739,2]
[367253202,1750716672492,-500.0,0.00022739,2]
[367253203,1750716672502,-500.0,0.00022739,2]
[367253204,1750716672511,-500.0,0.00022739,2]
[367253205,1750716672521,-500.0,0.00022739,2]
[367253206,1750716672530,-500.0,0.00022739,2]
[367253207,1750716672540,-500.0,0.00022739,2]
[367253208,1750716672549,-500.0,0.00022739,2]
[367253209,1750716672559,-500.0,0.00022739,2]
[367253210,1750716672568,-500.0,0.00022739,2]
[367253211,1750716672578,-500.0,0.00022739,2]
[367253212,1750716672588,-500.0,0.00022739,2]
[367253213,1750716672598,-500.0,0.00022739,2]
[367253214,1750716672608,-500.0,0.00022739,2]
[367253215,1750716672619,-500.0,0.00022739,2]
[367253216,1750716672631,-500.0,0.00022739,2]
[367253217,1750716672641,-500.0,0.00022739,2]
[367253218,1750716672650,-922.43,0.00022739,2]
[367253219,1750716672667,-500.0,0.00022739,2]
[367253220,1750716672676,-490.0,0.00022739,2]
[367253221,1750716672687,-500.0,0.00022739,2]
[367253222,1750716672696,-500.0,0.00022739,2]
[367253223,1750716672705,-1576.92,0.00022739,2]
[367253224,1750716672714,-500.0,0.00022739,2]
[367253225,1750716672723,-500.0,0.00022739,2]
[367253226,1750716672733,-500.0,0.00022739,2]
[367253227,1750716672743,-500.0,0.00022739,2]
[367253228,1750716672752,-500.0,0.00022739,2]
[367253229,1750716672761,-785.44,0.00022739,2]
[367253230,1750716672770,-500.0,0.00022739,2]
[367253231,1750716672779,-500.0,0.00022739,2]
[367253232,1750716672788,-490.0,0.00022739,2]
[367253233,1750716672797,-500.0,0.00022739,2]
[367253234,1750716672806,-500.0,0.00022739,2]
[367253235,1750716672815,-500.0,0.00022739,2]
[367253236,1750716672824,-500.0,0.00022739,2]
[367253237,1750716672834,-500.0,0.00022739,2]
[367253238,1750716672842,-500.0,0.00022739,2]
[367253239,1750716672852,-648.53,0.00022739,2]
[367253240,1750716672861,-398.1002258,0.00022739,2]
[367253241,1750716673823,-490.0,0.00021917,2]
[367253242,1750716673833,-490.0,0.00021917,2]
[367253243,1750716673844,-490.0,0.00022191,2]
[367253244,1750716673855,-579.9,0.00022465,2]
[367253245,1750716673867,-101.8997742,0.00022739,2]
[367253246,1750716673876,-500.0,0.00022739,2]
[367253247,1750716673886,-500.0,0.00022739,2]
[367253248,1750716673896,-500.0,0.00022739,2]
[367253249,1750716673909,-500.0,0.00022739,2]
[367253250,1750716673919,-500.0,0.00022739,2]
[367253251,1750716673930,-500.0,0.00022739,2]
[367253252,1750716673940,-500.0,0.00022739,2]
[367253253,1750716673950,-490.0,0.00022739,2]
[367253254,1750716673960,-500.0,0.00022739,2]
[367253255,1750716673970,-500.0,0.00022739,2]
[367253256,1750716673979,-500.0,0.00022739,2]
[367253257,1750716673989,-500.0,0.00022739,2]
[367253258,1750716673999,-500.0,0.00022739,2]
[367253259,1750716674009,-500.0,0.00022739,2]
[367253260,1750716674019,-492.72,0.00022739,2]
[367253261,1750716674028,-500.0,0.00022739,2]
[367253262,1750716674038,-1861.67,0.00022739,2]
[367253263,1750716674048,-500.0,0.00022739,2]
[367253264,1750716674057,-500.0,0.00022739,2]
[367253265,1750716674067,-500.0,0.00022739,2]
[367253266,1750716674076,-500.0,0.00022739,2]
[367253267,1750716674086,-500.0,0.00022739,2]
[367253268,1750716674095,-500.0,0.00022739,2]
[367253269,1750716674105,-500.0,0.00022739,2]
[367253270,1750716674115,-500.0,0.00022739,2]
[367253271,1750716674125,-500.0,0.00022739,2]
[367253272,1750716674135,-500.0,0.00022739,2]
[367253273,1750716674144,-500.0,0.00022739,2]
[367253274,1750716674155,-490.0,0.00022739,2]
[367253275,1750716674169,-500.0,0.00022739,2]
[367253276,1750716674179,-500.0,0.00022739,2]
[367253277,1750716674188,-500.0,0.00022739,2]
[367253278,1750716674198,-500.0,0.00022739,2]
[367253279,1750716674208,-500.0,0.00022739,2]
[367253280,1750716674218,-490.0,0.00022739,2]
[367253281,1750716674227,-500.0,0.00022739,2]
[367253282,1750716674237,-500.0,0.00022739,2]
[367253283,1750716674247,-500.0,0.00022739,2]
[367253284,1750716674256,-500.0,0.00022739,2]
[367253285,1750716674266,-500.0,0.00022739,2]
[367253286,1750716674275,-500.0,0.00022739,2]
[367253287,1750716674285,-490.0,0.00022739,2]
[367253288,1750716674295,-500.0,0.00022739,2]
[367253289,1750716674304,-490.0,0.00022739,2]
[367253290,1750716674314,-500.0,0.00022739,2]
[367253291,1750716674324,-500.0,0.00022739,2]
[367253292,1750716674333,-500.0,0.00022739,2]
[367253293,1750716674342,-500.0,0.00022739,2]
[367253294,1750716674351,-500.0,0.00022739,2]
[367253295,1750716674361,-490.0,0.00022739,2]
[367253296,1750716674370,-500.0,0.00022739,2]
[367253297,1750716674380,-500.0,0.00022739,2]
[367253298,1750716674390,-500.0,0.00022739,2]
[367253299,1750716674400,-500.0,0.00022739,2]
[367253300,1750716674413,-500.0,0.00022739,2]
[367253301,1750716674422,-567.0,0.00022739,2]
[367253302,1750716674432,-500.0,0.00022739,2]
[367253303,1750716674441,-490.0,0.00022739,2]
[367253304,1750716674451,-490.0,0.00022739,2]
[367253305,1750716674460,-500.0,0.00022739,2]
[367253306,1750716674470,-490.0,0.00022739,2]
[367253307,1750716674479,-500.0,0.00022739,2]
[367253308,1750716674488,-500.0,0.00022739,2]
[367253309,1750716674497,-490.0,0.00022739,2]
[367253310,1750716674507,-490.0,0.00022739,2]
[367253311,1750716674518,-490.0,0.00022739,2]
[367253312,1750716674528,-963.19,0.00022739,2]
[367253313,1750716674537,-490.0,0.00022739,2]
[367253314,1750716674548,-490.0,0.00022739,2]
[367253315,1750716674558,-490.0,0.00022739,2]
[367253316,1750716674569,-490.0,0.00022739,2]
[367253317,1750716674578,-1054.11,0.00022739,2]
[367253318,1750716674590,-522.67,0.00022739,2]
[367253319,1750716674601,-490.0,0.00022739,2]
[367253320,1750716674610,-490.0,0.00022739,2]
[367253321,1750716674619,-852.78,0.00022739,2]
[367253322,1750716674629,-1397.02,0.00022739,2]
[367253323,1750716674641,-834.03,0.00022739,2]
[367253324,1750716674652,-1093.26,0.00022739,2]
[367253325,1750716674665,-5044.99,0.00022739,2]
[367253326,1750716674674,-500.0,0.00022739,2]
[367253327,1750716674684,-500.0,0.00022739,2]